[Event "World Junior U20 Girls 2018"]
[Site "Gebze"]
[Date "2018.09.07"]
[Round "3"]
[White "Gorti, Akshita"]
[Black "Wafa, Shahenda"]
[Result "1-0"]
[ECO "D90"]
[WhiteElo "2315"]
[BlackElo "2129"]
[Annotator "NA"]
[PlyCount "91"]
[EventDate "2018.09.05"]
[EventType "swiss"]
[EventCountry "TUR"]
[SourceTitle "playchess.com"]
[Source "ChessBase"]
[SourceQuality "1"]
[TimeControl "40/5400+30:1800+30"]

1. d4 {[%emt 0:00:30]} d5 {[%emt 0:00:30]} 2. c4 {[%emt 0:02:30]} c6 {[%emt 0:00:00]} 3. cxd5 {[%emt 0:00:30]} cxd5 {[%emt 0:00:00]} 4. Bf4 {[%emt 0:00:30]} Nf6 {[%emt 0:03:30]} 5. Nc3 {[%emt 0:00:00]} g6 {[%emt 0:02:30] LiveBook: 19 Games} 6. e3 {[%emt 0:04:00]} a6 {[%emt 0:01:30]} 7. Bd3 {[%emt 0:01:30]} Bg7 {[%emt 0:00:30]} 8. h3 {[%emt 0:01:30]} O-O {[%emt 0:00:30]} 9. Nf3 {[%emt 0:00:30]} Nc6 {[%emt 0:00:30]} 10. O-O {[%emt 0:00:30]} b5 {[%emt 0:02:30]} 11. Rc1 {[%emt 0:02:30]} Bb7 {[%emt 0:01:30]} 12. Qe2 {[%emt 0:03:30] D90: Grünfeld: 4 Nf3 Bg7 sidelines} Re8 {[%emt 0:05:30]} 13. Rfd1 $146 {[%emt 0:05:30]} ({Predecessor:} 13. Ne5 Rc8 14. a4 b4 15. Nb1 Qa5 16. Nxc6 Rxc6 17. Rxc6 Bxc6 18. Rc1 Qxa4 19. b3 Qxb3 20. Rxc6 {1-0 (52) Chu,R (2267)-Checa,N (2486) chess.com INT 2018}) 13... Rc8 {[%emt 0:02:30]} 14. Ne5 {[%emt 0:12:30]} Qa5 {[%emt 0:20:30]} 15. a3 {[%emt 0:05:30]} Qb6 {[%emt 0:06:30]} 16. b4 {[%emt 0:07:30]} Nxe5 {[%emt 0:07:30]} 17. Bxe5 {[%emt 0:01:30]} Nd7 {[%emt 0:01:30]} 18. Bxg7 {[%emt 0:04:30]} Kxg7 {[%emt 0:00:30]} 19. Qb2 {[%emt 0:01:30]} Nf6 {[%emt 0:08:30]} 20. a4 {[%emt 0:00:30]} Bc6 {[%emt 0:06:30]} 21. a5 $16 {[%emt 0:13:30]} Qb7 {[%emt 0:03:30]} 22. Nb1 {[%emt 0:01:30]} e6 {[%emt 0:06:27]} 23. Nd2 {[%emt 0:02:30]} Qe7 {[%emt 0:01:50]} 24. Rc2 {[%emt 0:03:30]} Bb7 {[%emt 0:01:15]} 25. Rdc1 {[%emt 0:00:30]} Rxc2 {[%emt 0:00:12]} 26. Rxc2 {[%emt 0:00:30]} Rc8 {[%emt 0:02:04]} 27. Rxc8 {[%emt 0:00:30]} Bxc8 {[%emt 0:00:30]} 28. Qc3 {[%emt 0:00:00]} Bb7 {[%emt 0:05:15]} 29. Nb3 {[%emt 0:01:00]} Ne8 {[%emt 0:00:59]} 30. Qc5 {[%emt 0:03:30]} Qd6 {[%emt 0:03:49]} 31. Qa7 {[%emt 0:09:39]} Bc8 {[%emt 0:03:27]} 32. Nc5 {[%emt 0:02:16]} Qc6 {[%emt 0:00:52]} 33. e4 {[%emt 0:05:51]} dxe4 {[%emt 0:02:00]} 34. Bxe4 {[%emt 0:00:51]} Qd6 {[%emt 0:01:04]} 35. Qa8 {[%emt 0:02:13]} Qc7 {[%emt 0:00:29]} 36. Bc6 {[%emt 0:01:12]} Nd6 {[%emt 0:00:08]} 37. Nxa6 {[%emt 0:00:17]} Bxa6 {[%emt 0:00:30]} 38. Qxa6 {[%emt 0:00:30]} Nf5 {[%emt 0:00:00]} 39. Bxb5 {[%emt 0:01:08]} Nxd4 {[%emt 0:00:17]} 40. Bf1 {[%emt 0:00:00]} Qc1 {[%emt 0:00:00]} 41. Qc4 {[%emt 0:01:33]} Qa1 {[%emt 0:01:52]} 42. b5 {[%emt 0:01:30]} e5 {[%emt 0:00:30]} 43. a6 {[%emt 0:01:30]} Qa5 {[%emt 0:01:30]} 44. Qd3 {[%emt 0:07:30]} f5 {[%emt 0:03:30]} 45. Qe3 {[%emt 0:01:30]} Kf6 {[%emt 0:02:30]} 46. f4 {[%emt 0:00:30]} 1-0

[Event "World Junior U20 Girls 2018"]
[Site "Gebze"]
[Date "2018.09.07"]
[Round "3"]
[White "Unuk, Laura"]
[Black "Isha Sharma"]
[Result "1/2-1/2"]
[ECO "E61"]
[WhiteElo "2299"]
[BlackElo "2012"]
[Annotator "NA"]
[PlyCount "124"]
[EventDate "2018.09.05"]
[EventType "swiss"]
[EventCountry "TUR"]
[SourceTitle "playchess.com"]
[Source "ChessBase"]
[SourceQuality "1"]
[TimeControl "40/5400+30:1800+30"]

1. d4 {[%emt 0:00:30]} d6 {[%emt 0:00:30]} 2. Nf3 {[%emt 0:00:30]} Nf6 {[%emt 0:00:00]} 3. c4 {[%emt 0:00:00]} g6 {[%emt 0:00:00]} 4. Nc3 {[%emt 0:00:00]} Bf5 {[%emt 0:00:30] LiveBook: 972 Games} 5. Ng5 {[%emt 0:00:00]} Bg7 {[%emt 0:01:30]} 6. e4 {[%emt 0:00:00]} Bd7 {[%emt 0:00:30]} 7. f4 {[%emt 0:00:30]} O-O {[%emt 0:00:30]} 8. Be2 {[%emt 0:00:30]} Ne8 {[%emt 0:19:30]} 9. O-O {[%emt 0:13:30]} e5 {[%emt 0:33:30]} 10. fxe5 {[%emt 0:17:00]} dxe5 {[%emt 0:00:30]} 11. d5 {[%emt 0:04:30]} Qe7 {[%emt 0:08:30]} 12. Qe1 {[%emt 0:04:30]} a5 {[%emt 0:05:30]} 13. Be3 {[%emt 0:15:30]} Na6 {[%emt 0:05:30]} 14. Rd1 {[%emt 0:01:30]} b6 {[%emt 0:10:30]} 15. d6 {[%emt 0:06:30]} Nxd6 {[%emt 0:02:30]} 16. Nd5 {[%emt 0:01:30]} Qd8 {[%emt 0:01:30]} 17. Nxb6 {[%emt 0:00:30]} cxb6 {[%emt 0:00:30]} 18. Rxd6 {[%emt 0:00:30]} Qc7 {[%emt 0:00:30]} 19. Qd1 {[%emt 0:24:30]} Bc6 {[%emt 0:00:30]} 20. c5 {[%emt 0:04:09]} Nxc5 {[%emt 0:08:30]} 21. Bxc5 {[%emt 0:00:46]} bxc5 {[%emt 0:00:30]} 22. Bc4 {[%emt 0:00:00]} Be8 {[%emt 0:00:30]} 23. Nxf7 {[%emt 0:05:49]} Bxf7 {[%emt 0:00:00]} 24. Rxf7 {[%emt 0:00:28]} Rxf7 {[%emt 0:01:00]} 25. Rd7 {[%emt 0:00:18]} Qc8 {[%emt 0:05:37]} 26. Bxf7+ {[%emt 0:04:24]} Kh8 {[%emt 0:01:02]} 27. h4 {[%emt 0:00:58]} Rb8 {[%emt 0:04:52]} 28. h5 {[%emt 0:01:14]} gxh5 {[%emt 0:00:10]} 29. Be6 {[%emt 0:01:50]} Qf8 {[%emt 0:01:15]} 30. Bf5 {[%emt 0:03:11]} Qf6 {[%emt 0:02:13]} 31. Qxh5 {[%emt 0:02:59]} h6 {[%emt 0:00:04]} 32. Qe2 {[%emt 0:01:17]} Qg5 {[%emt 0:01:00]} 33. Rd6 {[%emt 0:01:36]} Qc1+ {[%emt 0:02:39]} 34. Kh2 {[%emt 0:00:01]} Qg5 {[%emt 0:01:37]} 35. Rd3 {[%emt 0:01:20]} Qh4+ {[%emt 0:01:08]} 36. Kg1 {[%emt 0:00:36]} Qg5 {[%emt 0:03:10]} 37. b3 {[%emt 0:00:23]} c4 {[%emt 0:00:42]} 38. Rc3 {[%emt 0:00:38]} cxb3 {[%emt 0:00:40]} 39. axb3 {[%emt 0:00:03]} Rd8 {[%emt 0:00:38]} 40. Kh2 {[%emt 0:00:00]} Qh4+ {[%emt 0:00:00]} 41. Kg1 {[%emt 0:07:00]} Qg5 {[%emt 0:03:43]} 42. Qc2 {[%emt 0:01:30] [#]} Rd2 $19 {[%emt 0:03:30]} 43. Rc8+ {[%emt 0:03:30]} Bf8 {[%emt 0:00:30]} 44. Rxf8+ {[%emt 0:05:34]} Kg7 {[%emt 0:00:30]} 45. Qxd2 {[%emt 0:01:52]} Qxd2 {[%emt 0:00:30]} 46. Rb8 {[%emt 0:00:04]} Kf6 {[%emt 0:02:30]} 47. Kh2 {[%emt 0:01:51]} Qf4+ {[%emt 0:01:30]} 48. Kh3 {[%emt 0:01:57]} h5 {[%emt 0:00:30]} 49. Rb6+ {[%emt 0:02:09]} Kf7 {[%emt 0:00:30]} 50. Rb7+ {[%emt 0:00:26]} Kf8 {[%emt 0:01:30]} 51. Rb8+ {[%emt 0:01:23]} Ke7 {[%emt 0:00:00]} 52. Rb7+ {[%emt 0:00:19]} Kd6 {[%emt 0:01:00]} 53. Rd7+ {[%emt 0:00:11]} Kc5 {[%emt 0:00:00]} 54. Rd3 {[%emt 0:00:33]} Qf2 {[%emt 0:02:00]} 55. Kh2 {[%emt 0:02:23]} Kb4 {[%emt 0:01:30]} 56. Rf3 {[%emt 0:00:41]} Qe1 {[%emt 0:00:30]} 57. Rh3 {[%emt 0:01:31]} Ka3 {[%emt 0:01:30]} 58. Bg6 {[%emt 0:00:30]} h4 {[%emt 0:00:30]} 59. Bf5 {[%emt 0:00:30]} Kb2 {[%emt 0:00:30]} 60. Rf3 {[%emt 0:01:20]} Ka3 {[%emt 0:01:46]} 61. Bg6 {[%emt 0:00:19]} Kb2 {[%emt 0:00:42]} 62. Bf5 {[%emt 0:00:30]} Ka3 {[%emt 0:00:00]} 1/2-1/2

[Event "World Junior U20 Girls 2018"]
[Site "Gebze"]
[Date "2018.09.07"]
[Round "3"]
[White "Chitlange Sakshi"]
[Black "Schneider, Jana"]
[Result "1/2-1/2"]
[ECO "D37"]
[WhiteElo "2279"]
[BlackElo "2190"]
[Annotator "NA"]
[PlyCount "125"]
[EventDate "2018.09.05"]
[EventType "swiss"]
[EventCountry "TUR"]
[SourceTitle "playchess.com"]
[Source "ChessBase"]
[SourceQuality "1"]
[TimeControl "40/5400+30:1800+30"]

1. d4 {[%emt 0:00:30]} Nf6 {[%emt 0:00:30]} 2. c4 {[%emt 0:00:30]} e6 {[%emt 0:00:00]} 3. Nf3 {[%emt 0:00:00]} d5 {[%emt 0:00:00]} 4. Nc3 {[%emt 0:00:00]} Be7 {[%emt 0:00:30]} 5. Bf4 {[%emt 0:00:30]} O-O {[%emt 0:00:30]} 6. e3 {[%emt 0:00:00]} a6 {[%emt 0:04:30]} 7. cxd5 {[%emt 0:04:00] LiveBook: 40 Games} exd5 {[%emt 0:01:30]} 8. Qc2 {[%emt 0:01:30]} Nbd7 {[%emt 0:01:30]} 9. Be2 {[%emt 0:04:30] D37: Queen's Gambit Declined: 5 Bf4} (9. h3 c5 10. a3 Re8 11. dxc5 Nxc5 12. Rd1 Be6 13. Be2 Rc8 14. Qb1 Nce4 15. Nxe4 Nxe4 16. O-O Bf6 {½-½ (25) Dreev,A (2638)-Miladinovic,I (2556) Kragujevac 2015}) 9... c6 {[%emt 0:01:30]} 10. h3 {[%emt 0:02:30]} Re8 {[%emt 0:01:30]} 11. O-O {[%emt 0:00:30]} Nf8 {[%emt 0:01:30]} 12. Rab1 $146 {[%emt 0:05:30]} ({Predecessor:} 12. Ne5 Ng6 13. Bg3 Bd6 14. f4 c5 15. Bf3 Ne7 16. Bh4 cxd4 17. exd4 {½-½ (56) Brown,A (2245)-Morris,J (2398) Adelaide 2013}) 12... g6 {[%emt 0:04:30]} 13. Bd3 {[%emt 0:00:30]} Ne6 {[%emt 0:00:30]} 14. Be5 {[%emt 0:02:30]} Ng7 {[%emt 0:02:30]} 15. b4 {[%emt 0:26:30]} Bf5 {[%emt 0:23:30]} 16. a4 {[%emt 0:00:30]} Bxd3 {[%emt 0:00:30]} 17. Qxd3 {[%emt 0:00:00]} Nd7 {[%emt 0:14:30]} 18. Bh2 {[%emt 0:04:00]} Nf5 {[%emt 0:01:30]} 19. Rfc1 {[%emt 0:01:30]} Bd6 {[%emt 0:02:30]} 20. b5 {[%emt 0:09:30]} axb5 {[%emt 0:01:30]} 21. axb5 {[%emt 0:00:00]} Bxh2+ {[%emt 0:00:30]} 22. Kxh2 {[%emt 0:00:00]} Nd6 {[%emt 0:00:30]} 23. Ra1 {[%emt 0:04:30]} Nb6 {[%emt 0:07:30]} 24. bxc6 {[%emt 0:02:30]} bxc6 {[%emt 0:00:30]} 25. Nd2 {[%emt 0:03:30]} Qc7 {[%emt 0:06:30]} 26. Kg1 {[%emt 0:00:30]} c5 {[%emt 0:04:30]} 27. Rxa8 {[%emt 0:03:30]} Rxa8 $16 {[%emt 0:00:30]} 28. Nb5 {[%emt 0:02:30]} Nxb5 {[%emt 0:02:30]} 29. Rxc5 {[%emt 0:00:30]} Ra1+ {[%emt 0:03:30]} 30. Nf1 {[%emt 0:00:30]} Qd7 {[%emt 0:00:30]} 31. Rxb5 {[%emt 0:00:30]} Nc4 {[%emt 0:00:30]} 32. Rb1 {[%emt 0:00:30]} Ra2 {[%emt 0:11:30]} 33. Qb3 {[%emt 0:01:30]} Qa7 {[%emt 0:03:30]} 34. Qb8+ {[%emt 0:05:30]} Qxb8 {[%emt 0:00:30]} 35. Rxb8+ {[%emt 0:00:00]} Kg7 {[%emt 0:00:00]} 36. g4 {[%emt 0:01:00]} Kf6 {[%emt 0:04:21]} 37. Kg2 {[%emt 0:02:30]} Nd6 {[%emt 0:01:49]} 38. Ng3 {[%emt 0:01:30]} Nc4 {[%emt 0:00:21]} 39. Rb3 {[%emt 0:01:30]} Kg5 {[%emt 0:01:54]} 40. Rc3 {[%emt 0:00:00]} f5 {[%emt 0:00:00]} 41. gxf5 {[%emt 0:04:00]} gxf5 {[%emt 0:03:05]} 42. Rd3 {[%emt 0:00:30]} Nd2 {[%emt 0:13:30]} 43. Rc3 {[%emt 0:07:30]} Nc4 {[%emt 0:00:30]} 44. Rb3 {[%emt 0:00:30]} h5 {[%emt 0:00:30]} 45. Rb7 {[%emt 0:14:30]} Nxe3+ {[%emt 0:05:30]} 46. Kf3 {[%emt 0:00:00]} Nd1 {[%emt 0:00:30]} 47. Rg7+ {[%emt 0:00:00]} Kh4 {[%emt 0:12:33]} 48. Nxf5+ {[%emt 0:16:30]} Kxh3 {[%emt 0:00:30]} 49. Rg3+ {[%emt 0:00:30]} Kh2 {[%emt 0:00:00]} 50. Rg2+ {[%emt 0:02:30]} Kh3 {[%emt 0:00:00]} 51. Ne3 {[%emt 0:01:30]} Nxe3 {[%emt 0:00:53]} 52. Rg3+ {[%emt 0:00:30]} Kh2 {[%emt 0:00:02]} 53. fxe3 {[%emt 0:03:30]} h4 {[%emt 0:02:20]} 54. Rg5 {[%emt 0:00:30]} h3 {[%emt 0:03:50]} 55. Rxd5 {[%emt 0:00:30]} Kg1 {[%emt 0:02:13]} 56. Rb5 {[%emt 0:00:30]} Ra1 {[%emt 0:00:19]} 57. Rb2 {[%emt 0:00:30]} h2 {[%emt 0:00:30]} 58. Rg2+ {[%emt 0:00:30]} Kh1 {[%emt 0:00:19]} 59. Rg8 {[%emt 0:03:40]} Rf1+ {[%emt 0:01:13]} 60. Ke2 {[%emt 0:03:21]} Re1+ {[%emt 0:00:59]} 61. Kf2 {[%emt 0:03:54]} Re2+ {[%emt 0:00:14]} 62. Kf3 {[%emt 0:02:03]} Rxe3+ {[%emt 0:00:09]} 63. Kxe3 {[%emt 0:00:52]} 1/2-1/2

[Event "World Junior U20 Girls 2018"]
[Site "Gebze"]
[Date "2018.09.07"]
[Round "3"]
[White "Potapova, Margarita"]
[Black "Ozbay, Ece"]
[Result "1-0"]
[ECO "D10"]
[WhiteElo "2277"]
[BlackElo "2114"]
[Annotator "NA"]
[PlyCount "113"]
[EventDate "2018.09.05"]
[EventType "swiss"]
[EventCountry "TUR"]
[SourceTitle "playchess.com"]
[Source "ChessBase"]
[SourceQuality "1"]
[TimeControl "40/5400+30:1800+30"]

1. d4 {Fier,A} d5 2. c4 c6 3. Nc3 Nf6 4. e3 Bf5 5. cxd5 cxd5 6. Qb3 Bc8 7. Nf3 e6 8. Ne5 Nc6 {D10: Slav Defence: 3 cxd5 (without early Nf3) and 3 Nc3} 9. f4 Be7 10. Bd3 Nd7 11. O-O Ndxe5 12. fxe5 f6 13. exf6 Bxf6 14. Bd2 O-O {[#]} 15. Be1 $146 Bd7 16. Bg3 Bg5 ({Better is} 16... Na5 $14 17. Qc2 Nc4) 17. Rxf8+ Qxf8 18. Re1 b6 19. a3 Qf6 (19... Qe7 $11 {and Black stays safe.}) 20. Nxd5 Qh6 21. Be4 Rc8 22. Nc7 Na5 23. Qd3 Bh4 24. Rc1 Bb5 25. Bxh7+ Kh8 26. Qe4 Bxg3 27. hxg3 Nb3 28. Rc3 Nd2 29. Qg6 Rf8 30. Qxh6 Rf1+ 31. Kh2 gxh6 32. Nxb5 Kxh7 33. Rc7+ Kg6 $18 34. Nd6 Re1 35. Rxa7 Rxe3 36. g4 Rb3 37. Ne8 Kg5 38. Rg7+ Kf4 39. Nc7 e5 40. d5 Rxb2 41. Ne6+ Ke3 42. d6 Nf3+ 43. Kg3 Ne1 44. d7 Rxg2+ 45. Kh3 Rg1 46. g5 h5 47. Rf7 Nf3 48. Rxf3+ Kxf3 49. Kh2 Rg2+ 50. Kh1 Rd2 51. d8=Q Rxd8 52. Nxd8 e4 53. Nc6 e3 54. g6 Ke4 55. Kg2 h4 56. g7 h3+ 57. Kxh3 1-0

[Event "World Junior U20 Girls 2018"]
[Site "Gebze"]
[Date "2018.09.07"]
[Round "3"]
[White "Alinasab, Mobina"]
[Black "Cramling Bellon, Anna"]
[Result "1-0"]
[ECO "B24"]
[WhiteElo "2261"]
[BlackElo "2009"]
[Annotator "NA"]
[PlyCount "71"]
[EventDate "2018.09.05"]
[EventType "swiss"]
[EventCountry "TUR"]
[SourceTitle "playchess.com"]
[Source "ChessBase"]
[SourceQuality "1"]
[TimeControl "40/5400+30:1800+30"]

1. e4 {[%emt 0:00:30]} c5 {[%emt 0:00:30]} 2. Nf3 {[%emt 0:00:00]} e6 {[%emt 0:00:00]} 3. d4 {[%emt 0:01:00]} cxd4 {[%emt 0:00:00]} 4. Nxd4 {[%emt 0:00:00]} Nf6 {[%emt 0:00:30]} 5. Nc3 {[%emt 0:00:00]} Nc6 {[%emt 0:00:00]} 6. g3 {[%emt 0:01:30]} Bb4 {[%emt 0:12:00]} 7. Bg2 {[%emt 0:01:30]} d5 {[%emt 0:07:30]} 8. O-O {[%emt 0:01:30]} O-O {[%emt 0:00:30]} 9. exd5 {[%emt 0:07:30]} exd5 {[%emt 0:13:30]} 10. Bg5 {[%emt 0:14:00]} Bxc3 {[%emt 0:50:00]} 11. bxc3 {[%emt 0:00:30]} h6 {[%emt 0:05:30]} 12. Bf4 {[%emt 0:13:30]} Bg4 {[%emt 0:07:30]} 13. Nxc6 {[%emt 0:02:30]} bxc6 {[%emt 0:00:00]} 14. Qd4 {[%emt 0:01:30]} Be2 {[%emt 0:10:00]} 15. Rfb1 {[%emt 0:00:30]} Qa5 {[%emt 0:02:30]} 16. Bd6 {[%emt 0:00:30]} Rfe8 {[%emt 0:00:30]} 17. Re1 {[%emt 0:08:30]} Bc4 $11 {[%emt 0:04:32]} 18. Be7 {[%emt 0:07:30]} Nd7 {[%emt 0:02:00]} 19. Re3 {[%emt 0:14:30]} Rab8 {[%emt 0:10:13]} 20. Qf4 {[%emt 0:04:30]} Nf8 {[%emt 0:02:29]} 21. Bd6 {[%emt 0:06:30]} Rxe3 {[%emt 0:01:44]} 22. Qxe3 {[%emt 0:01:30]} Rd8 {[%emt 0:00:08]} 23. Bb4 {[%emt 0:03:30]} Qc7 {[%emt 0:00:20]} 24. Bh3 {[%emt 0:02:30]} Ng6 {[%emt 0:02:36]} 25. Re1 {[%emt 0:00:30]} a5 {[%emt 0:01:17]} 26. Bc5 {[%emt 0:00:30]} Rb8 {[%emt 0:00:00]} 27. a3 {[%emt 0:00:30]} Qe5 {[%emt 0:01:34]} 28. f4 {[%emt 0:05:51]} Qxe3+ {[%emt 0:00:31]} 29. Rxe3 {[%emt 0:00:04]} Rb1+ {[%emt 0:00:33]} 30. Kf2 {[%emt 0:00:11]} Rb2 {[%emt 0:00:21]} 31. Bf5 {[%emt 0:02:59]} Rb8 {[%emt 0:00:36]} 32. Bd6 {[%emt 0:01:41]} Rb2 {[%emt 0:00:31]} 33. h4 {[%emt 0:01:52]} h5 {[%emt 0:00:13]} 34. Re8+ {[%emt 0:02:17]} Kh7 {[%emt 0:00:00]} 35. g4 {[%emt 0:00:00]} Kh6 {[%emt 0:00:36]} 36. Rh8+ {[%emt 0:00:00]} 1-0

[Event "World Junior U20 Girls 2018"]
[Site "Gebze"]
[Date "2018.09.07"]
[Round "3"]
[White "Haussernot, Cecile"]
[Black "Stanciu, Ioana-Georgiana"]
[Result "1-0"]
[ECO "B23"]
[WhiteElo "2237"]
[BlackElo "2000"]
[Annotator "NA"]
[PlyCount "111"]
[EventDate "2018.09.05"]
[EventType "swiss"]
[EventCountry "TUR"]
[SourceTitle "playchess.com"]
[Source "ChessBase"]
[SourceQuality "1"]
[TimeControl "40/5400+30:1800+30"]

1. e4 c5 2. Nc3 d6 3. f4 g6 4. Nf3 Bg7 5. Bb5+ Bd7 6. Bc4 e6 7. O-O Ne7 8. d3 Nbc6 9. f5 gxf5 10. Ng5 {[%emt 0:10:00]} Ne5 {[%emt 0:40:00]} 11. Qh5 {[%emt 0:00:30]} N7g6 {[%emt 0:00:30]} 12. exf5 {[%emt 0:00:30]} exf5 {[%emt 0:01:30]} 13. Re1 {[%emt 0:04:30]} Kf8 {[%emt 0:24:30]} 14. Rxe5 {[%emt 0:07:30]} Bxe5 $16 {[%emt 0:02:30]} (14... Nxe5 $15 {bleibt weiter vorne.} 15. Bxf7 Qc8) 15. Nxf7 {[%emt 0:00:30]} Qh4 {[%emt 0:01:30]} 16. Qxh4 {[%emt 0:05:30]} Nxh4 {[%emt 0:00:30]} 17. Nxe5 {[%emt 0:00:30]} dxe5 {[%emt 0:00:30]} 18. Bh6+ {[%emt 0:00:30]} Ke8 {[%emt 0:00:30]} 19. Nd5 {[%emt 0:00:30]} Rc8 {[%emt 0:01:30]} 20. Re1 {[%emt 0:05:30]} Ng6 {[%emt 0:03:30]} 21. h4 {[%emt 0:00:30]} b5 {[%emt 0:05:38]} 22. h5 {[%emt 0:00:30]} bxc4 {[%emt 0:05:14]} 23. hxg6 {[%emt 0:00:30]} Be6 {[%emt 0:04:10]} 24. g7 {[%emt 0:00:30]} Rg8 {[%emt 0:00:30]} 25. Nf6+ {[%emt 0:00:30]} Ke7 {[%emt 0:00:30]} 26. Nxg8+ {[%emt 0:00:30]} Rxg8 {[%emt 0:00:30]} 27. Rxe5 {[%emt 0:00:30]} Kd6 {[%emt 0:02:25]} 28. Bf4 {[%emt 0:09:30]} cxd3 {[%emt 0:02:37]} 29. cxd3 {[%emt 0:06:30]} Rxg7 {[%emt 0:01:01]} 30. b4 {[%emt 0:00:00]} cxb4 {[%emt 0:01:39]} 31. Ra5+ {[%emt 0:00:00]} Ke7 {[%emt 0:01:27]} 32. Rxa7+ {[%emt 0:00:30]} Kf6 {[%emt 0:00:00]} 33. Be5+ {[%emt 0:01:30]} Kxe5 {[%emt 0:00:14]} 34. Rxg7 {[%emt 0:00:30]} Bxa2 {[%emt 0:00:30]} 35. Rb7 {[%emt 0:00:30]} b3 {[%emt 0:00:30]} 36. Rb4 {[%emt 0:00:30]} Kd5 {[%emt 0:00:30]} 37. d4 {[%emt 0:00:30]} Ke4 {[%emt 0:00:30]} 38. Kf2 {[%emt 0:00:30]} f4 {[%emt 0:01:50]} 39. Ke2 {[%emt 0:01:30]} h5 {[%emt 0:01:13]} 40. Kd2 {[%emt 0:00:00]} h4 {[%emt 0:00:00]} 41. Kc3 {[%emt 0:01:00]} h3 {[%emt 0:20:28]} 42. gxh3 {[%emt 0:00:30]} f3 {[%emt 0:00:23]} 43. Kd2 {[%emt 0:08:30]} b2 {[%emt 0:01:28]} 44. d5+ {[%emt 0:00:30]} Ke5 {[%emt 0:01:52]} 45. Rxb2 {[%emt 0:00:30]} Bxd5 {[%emt 0:00:05]} 46. Ke3 {[%emt 0:00:00]} Kf5 {[%emt 0:01:43]} 47. Rb5 {[%emt 0:00:00]} Ke6 {[%emt 0:00:06]} 48. h4 {[%emt 0:00:30]} Ba8 {[%emt 0:02:16]} 49. Rb8 {[%emt 0:00:30]} Bd5 {[%emt 0:00:18]} 50. Rf8 {[%emt 0:00:30]} Ke7 {[%emt 0:00:56]} 51. Rf5 {[%emt 0:00:30]} Ke6 {[%emt 0:01:10]} 52. Rf4 {[%emt 0:00:00]} Ke7 {[%emt 0:02:56]} 53. h5 {[%emt 0:00:00]} Bf7 {[%emt 0:00:33]} 54. h6 {[%emt 0:00:00]} Bg6 {[%emt 0:00:00]} 55. Kxf3 {[%emt 0:00:00]} Bh7 {[%emt 0:01:01]} 56. Kg4 {[%emt 0:00:30]} 1-0